[Event "*** SCC Grand Prix: Titled Tuesday Blitz"]
[Site "Chess.com"]
[Date "2020.07.14"]
[Round "5"]
[White "ChessicallyInclined"]
[Black "tdf98pantani"]
[Result "1/2-1/2"]
[WhiteElo "2501"]
[BlackElo "2674"]
[TimeControl "180+1"]
[EndTime "10:57:19 PDT"]
[Termination "Game drawn by stalemate"]

1. d4 {[%clk 0:03:00.9]} 1... d5 {[%clk 0:02:59.2]} 2. c4 {[%clk 0:03:01.4]}
2... e6 {[%clk 0:02:59.6]} 3. Nc3 {[%clk 0:02:59.5]} 3... Nf6 {[%clk 0:02:59.8]}
4. cxd5 {[%clk 0:02:59.5]} 4... exd5 {[%clk 0:03:00.1]} 5. Bg5 {[%clk
0:02:59.9]} 5... Be7 {[%clk 0:03:00.3]} 6. Qc2 {[%clk 0:03:00.2]} 6... c6 {[%clk
0:03:00.2]} 7. e3 {[%clk 0:03:00.6]} 7... Nbd7 {[%clk 0:03:00.3]} 8. Bd3 {[%clk
0:03:00.8]} 8... Nf8 {[%clk 0:03:00.5]} 9. Nge2 {[%clk 0:03:00.9]} 9... Ne6
{[%clk 0:03:00.1]} 10. Bh4 {[%clk 0:02:58.7]} 10... g6 {[%clk 0:03:00.3]} 11.
O-O {[%clk 0:02:57.9]} 11... O-O {[%clk 0:02:58.7]} 12. f3 {[%clk 0:02:57.4]}
12... b5 {[%clk 0:02:58.2]} 13. Bf2 {[%clk 0:02:53]} 13... Bb7 {[%clk 0:02:56]}
14. Kh1 {[%clk 0:02:52.4]} 14... Rc8 {[%clk 0:02:51.9]} 15. Rad1 {[%clk
0:02:50.2]} 15... Qa5 {[%clk 0:02:47.5]} 16. e4 {[%clk 0:02:42.1]} 16... b4
{[%clk 0:02:44.8]} 17. Na4 {[%clk 0:02:38.1]} 17... c5 {[%clk 0:02:35.6]} 18. e5
{[%clk 0:02:10.5]} 18... Nd7 {[%clk 0:02:29.6]} 19. Nxc5 {[%clk 0:02:04.9]}
19... Ndxc5 {[%clk 0:02:28.7]} 20. dxc5 {[%clk 0:02:05.8]} 20... Bxc5 {[%clk
0:02:19.8]} 21. Bxc5 {[%clk 0:02:00]} 21... Nxc5 {[%clk 0:02:19.6]} 22. b3
{[%clk 0:01:20.7]} 22... Nxd3 {[%clk 0:01:53]} 23. Qxd3 {[%clk 0:01:20.4]} 23...
Qxa2 {[%clk 0:01:53.4]} 24. Ra1 {[%clk 0:01:15.1]} 24... Qc2 {[%clk 0:01:48.4]}
25. Qxc2 {[%clk 0:01:07.2]} 25... Rxc2 {[%clk 0:01:47.6]} 26. Rxa7 {[%clk
0:01:03.3]} 26... Rb8 {[%clk 0:01:24.5]} 27. Nd4 {[%clk 0:00:55.5]} 27... Rd2
{[%clk 0:01:24.1]} 28. Nb5 {[%clk 0:00:53]} 28... Bc8 {[%clk 0:01:21.3]} 29. Nd6
{[%clk 0:00:26.9]} 29... Be6 {[%clk 0:01:21.2]} 30. Raa1 {[%clk 0:00:25.2]}
30... d4 {[%clk 0:01:12.7]} 31. Ne4 {[%clk 0:00:19.3]} 31... Rb2 {[%clk
0:01:09.4]} 32. Rfd1 {[%clk 0:00:18.7]} 32... Rd8 {[%clk 0:01:01.4]} 33. Nd6
{[%clk 0:00:18.9]} 33... Bxb3 {[%clk 0:00:58]} 34. Rxd4 {[%clk 0:00:18.6]} 34...
Be6 {[%clk 0:00:53.9]} 35. Rdd1 {[%clk 0:00:14.9]} 35... b3 {[%clk 0:00:53.5]}
36. Kg1 {[%clk 0:00:15.2]} 36... Rb8 {[%clk 0:00:51.6]} 37. Ne4 {[%clk
0:00:13.8]} 37... Rc2 {[%clk 0:00:50.7]} 38. Rab1 {[%clk 0:00:10]} 38... Ra8
{[%clk 0:00:49.4]} 39. Rd2 {[%clk 0:00:08.1]} 39... Raa2 {[%clk 0:00:48.2]} 40.
Rxc2 {[%clk 0:00:07.6]} 40... bxc2 {[%clk 0:00:47.5]} 41. Rc1 {[%clk 0:00:06.1]}
41... Rb2 {[%clk 0:00:44]} 42. Kf2 {[%clk 0:00:06.5]} 42... Bb3 {[%clk 0:00:43]}
43. Nc3 {[%clk 0:00:05.4]} 43... Ba2 {[%clk 0:00:37.3]} 44. Nxa2 {[%clk
0:00:03.5]} 44... Rxa2 {[%clk 0:00:37.3]} 45. Ke3 {[%clk 0:00:04.4]} 45... Kg7
{[%clk 0:00:32.8]} 46. Kd3 {[%clk 0:00:04.6]} 46... Ra5 {[%clk 0:00:29.2]} 47.
Rxc2 {[%clk 0:00:04.7]} 47... Rxe5 {[%clk 0:00:29.1]} 48. Re2 {[%clk 0:00:05.6]}
48... Rxe2 {[%clk 0:00:27.2]} 49. Kxe2 {[%clk 0:00:06.5]} 49... Kf6 {[%clk
0:00:27.7]} 50. Ke3 {[%clk 0:00:07.1]} 50... Ke5 {[%clk 0:00:25.2]} 51. f4+
{[%clk 0:00:07.2]} 51... Kd5 {[%clk 0:00:25.2]} 52. Kf3 {[%clk 0:00:07.4]} 52...
Kd4 {[%clk 0:00:24.9]} 53. g3 {[%clk 0:00:07.4]} 53... f5 {[%clk 0:00:24.2]} 54.
Kf2 {[%clk 0:00:06.1]} 54... h6 {[%clk 0:00:22.5]} 55. Kf3 {[%clk 0:00:04.7]}
55... Kd3 {[%clk 0:00:21.2]} 56. Kf2 {[%clk 0:00:05.2]} 56... Ke4 {[%clk
0:00:20.6]} 57. Ke2 {[%clk 0:00:05.6]} 57... g5 {[%clk 0:00:20.9]} 58. fxg5
{[%clk 0:00:06.2]} 58... hxg5 {[%clk 0:00:21.1]} 59. h4 {[%clk 0:00:06]} 59...
gxh4 {[%clk 0:00:17.2]} 60. gxh4 {[%clk 0:00:06.9]} 60... Kf4 {[%clk 0:00:17.7]}
61. h5 {[%clk 0:00:06.7]} 61... Kg5 {[%clk 0:00:18.1]} 62. Kf3 {[%clk
0:00:07.3]} 62... Kxh5 {[%clk 0:00:18.5]} 63. Kf4 {[%clk 0:00:08.2]} 63... Kg6
{[%clk 0:00:19.1]} 64. Kf3 {[%clk 0:00:08.7]} 64... Kg5 {[%clk 0:00:19.7]} 65.
Kg3 {[%clk 0:00:09.3]} 65... f4+ {[%clk 0:00:20.2]} 66. Kf3 {[%clk 0:00:09.7]}
66... Kf5 {[%clk 0:00:20.8]} 67. Kf2 {[%clk 0:00:10.3]} 67... Kg4 {[%clk
0:00:21.2]} 68. Kg2 {[%clk 0:00:10.9]} 68... f3+ {[%clk 0:00:21.8]} 69. Kf2
{[%clk 0:00:10.9]} 69... Kf4 {[%clk 0:00:22.4]} 70. Kf1 {[%clk 0:00:11.6]} 70...
Kg3 {[%clk 0:00:22.9]} 71. Kg1 {[%clk 0:00:12.1]} 71... f2+ {[%clk 0:00:23.5]}
72. Kf1 {[%clk 0:00:12.6]} 72... Kf3 {[%clk 0:00:24.4]} 1/2-1/2

[Event "*** SCC Grand Prix: Titled Tuesday Blitz"]
[Site "Chess.com"]
[Date "2020.07.14"]
[Round "5"]
[White "ljuks68"]
[Black "Anton_Demchenko"]
[Result "0-1"]
[WhiteElo "2443"]
[BlackElo "2816"]
[TimeControl "180+1"]
[EndTime "10:57:19 PDT"]
[Termination "Anton_Demchenko won on time"]

1. e4 {[%clk 0:03:00.9]} 1... c5 {[%clk 0:02:58.1]} 2. Nf3 {[%clk 0:03:00.6]}
2... Nc6 {[%clk 0:02:56.6]} 3. d4 {[%clk 0:03:00.7]} 3... cxd4 {[%clk
0:02:57.5]} 4. Nxd4 {[%clk 0:03:01.2]} 4... Nf6 {[%clk 0:02:57.8]} 5. Nc3 {[%clk
0:03:01.2]} 5... d6 {[%clk 0:02:58.5]} 6. Bc4 {[%clk 0:02:59.9]} 6... e6 {[%clk
0:02:57.3]} 7. Be3 {[%clk 0:02:59.4]} 7... a6 {[%clk 0:02:56.5]} 8. Qe2 {[%clk
0:02:58.8]} 8... Bd7 {[%clk 0:02:56.9]} 9. Bb3 {[%clk 0:02:56.5]} 9... b5 {[%clk
0:02:54.2]} 10. f3 {[%clk 0:02:36.6]} 10... h5 {[%clk 0:02:38.5]} 11. Nxc6
{[%clk 0:02:35.2]} 11... Bxc6 {[%clk 0:02:38.7]} 12. O-O {[%clk 0:02:28.5]}
12... Qc7 {[%clk 0:02:38]} 13. a4 {[%clk 0:01:54]} 13... b4 {[%clk 0:02:32.6]}
14. Na2 {[%clk 0:01:52.6]} 14... d5 {[%clk 0:02:30.3]} 15. Bg5 {[%clk
0:01:34.5]} 15... dxe4 {[%clk 0:02:25.7]} 16. Bxf6 {[%clk 0:01:33.2]} 16... gxf6
{[%clk 0:02:15.5]} 17. fxe4 {[%clk 0:01:32.8]} 17... Qe5 {[%clk 0:02:13]} 18. c3
{[%clk 0:01:19.8]} 18... Bc5+ {[%clk 0:02:02.3]} 19. Rf2 {[%clk 0:01:13.6]}
19... bxc3 {[%clk 0:02:01.7]} 20. Nxc3 {[%clk 0:01:12.4]} 20... Rg8 {[%clk
0:01:53.4]} 21. Rf1 {[%clk 0:00:59.2]} 21... Ke7 {[%clk 0:01:46.6]} 22. Kh1
{[%clk 0:00:58.6]} 22... Bxf2 {[%clk 0:01:45.8]} 23. Qxf2 {[%clk 0:00:55]} 23...
Bd7 {[%clk 0:01:08.7]} 24. Rd1 {[%clk 0:00:44]} 24... Rgd8 {[%clk 0:01:00.8]}
25. Bc4 {[%clk 0:00:23.9]} 25... Be8 {[%clk 0:00:44.1]} 26. Re1 {[%clk
0:00:20.3]} 26... Qd4 {[%clk 0:00:39.9]} 27. Qe2 {[%clk 0:00:09.6]} 27... Kf8
{[%clk 0:00:26]} 28. Rd1 {[%clk 0:00:07.3]} 28... Qc5 {[%clk 0:00:24.2]} 29. Rf1
{[%clk 0:00:06.7]} 29... Qg5 {[%clk 0:00:15.5]} 30. Qf3 {[%clk 0:00:05.2]} 30...
a5 {[%clk 0:00:12.9]} 31. h3 {[%clk 0:00:03.8]} 31... Rac8 {[%clk 0:00:11.7]}
32. b3 {[%clk 0:00:03.7]} 32... Rc5 {[%clk 0:00:11.2]} 33. Qxf6 {[%clk
0:00:03.5]} 33... Qxf6 {[%clk 0:00:11.1]} 34. Rxf6 {[%clk 0:00:03.9]} 34... Ke7
{[%clk 0:00:10.4]} 35. Rf3 {[%clk 0:00:04.3]} 35... Bc6 {[%clk 0:00:10.5]} 36.
Re3 {[%clk 0:00:04]} 36... Re5 {[%clk 0:00:09.3]} 37. Kh2 {[%clk 0:00:03.9]}
37... f5 {[%clk 0:00:09.4]} 38. Kg3 {[%clk 0:00:04]} 38... fxe4 {[%clk
0:00:08.5]} 39. Kh4 {[%clk 0:00:03.2]} 39... Rf8 {[%clk 0:00:07.5]} 40. Ne2
{[%clk 0:00:02.7]} 40... Rf2 {[%clk 0:00:07]} 41. Nd4 {[%clk 0:00:01.6]} 41...
Bd7 {[%clk 0:00:05.7]} 42. g4 {[%clk 0:00:01.5]} 42... hxg4 {[%clk 0:00:06.1]}
43. hxg4 {[%clk 0:00:01.6]} 43... Rh2+ {[%clk 0:00:06.5]} 44. Kg3 {[%clk
0:00:01.7]} 44... Rd2 {[%clk 0:00:07.2]} 45. Kf4 {[%clk 0:00:01.9]} 45... Rc5
{[%clk 0:00:05.8]} 46. Rxe4 {[%clk 0:00:02.2]} 46... Kd6 {[%clk 0:00:04.3]} 47.
Nxe6 {[%clk 0:00:02.1]} 47... Rxc4 {[%clk 0:00:04.7]} 48. bxc4 {[%clk
0:00:01.5]} 48... Bxe6 {[%clk 0:00:05.2]} 49. c5+ {[%clk 0:00:02]} 49... Ke7
{[%clk 0:00:04.9]} 50. c6 {[%clk 0:00:02.2]} 50... Rc2 {[%clk 0:00:04.9]} 51.
Re5 {[%clk 0:00:02.7]} 51... Rc4+ {[%clk 0:00:04.3]} 52. Ke3 {[%clk 0:00:01.9]}
52... Rxa4 {[%clk 0:00:04.3]} 53. Rc5 {[%clk 0:00:01.7]} 53... Kd8 {[%clk
0:00:03.8]} 54. g5 {[%clk 0:00:01.5]} 54... Kc7 {[%clk 0:00:03.9]} 55. g6 {[%clk
0:00:01.5]} 55... Ra3+ {[%clk 0:00:03.6]} 0-1

[Event "*** SCC Grand Prix: Titled Tuesday Blitz"]
[Site "Chess.com"]
[Date "2020.07.14"]
[Round "5"]
[White "timator"]
[Black "jens1102"]
[Result "1-0"]
[WhiteElo "2601"]
[BlackElo "2424"]
[TimeControl "180+1"]
[EndTime "10:57:21 PDT"]
[Termination "timator won by checkmate"]

1. Nf3 {[%clk 0:02:47.4]} 1... Nf6 {[%clk 0:02:59.8]} 2. d4 {[%clk 0:02:48.3]}
2... e6 {[%clk 0:02:58.9]} 3. g3 {[%clk 0:02:48.5]} 3... d5 {[%clk 0:02:58.6]}
4. Bg2 {[%clk 0:02:49.4]} 4... Bb4+ {[%clk 0:02:58.4]} 5. c3 {[%clk 0:02:49.2]}
5... Be7 {[%clk 0:02:58.7]} 6. O-O {[%clk 0:02:50.1]} 6... O-O {[%clk
0:02:59.1]} 7. Nbd2 {[%clk 0:02:51]} 7... c5 {[%clk 0:02:59.1]} 8. b3 {[%clk
0:02:49.9]} 8... Nc6 {[%clk 0:02:59.3]} 9. Bb2 {[%clk 0:02:50.5]} 9... cxd4
{[%clk 0:02:59.5]} 10. cxd4 {[%clk 0:02:50.5]} 10... b6 {[%clk 0:03:00]} 11. Rc1
{[%clk 0:02:50.7]} 11... Bb7 {[%clk 0:03:00.3]} 12. Re1 {[%clk 0:02:51.2]} 12...
Rc8 {[%clk 0:03:00.4]} 13. a3 {[%clk 0:02:50.7]} 13... a5 {[%clk 0:02:53.6]} 14.
e3 {[%clk 0:02:50.6]} 14... Bd6 {[%clk 0:02:44.2]} 15. Bf1 {[%clk 0:02:47.1]}
15... Qe7 {[%clk 0:02:40.2]} 16. Ra1 {[%clk 0:02:46.4]} 16... Nb8 {[%clk
0:02:38.3]} 17. Ne5 {[%clk 0:02:45]} 17... Ba6 {[%clk 0:02:35.7]} 18. f4 {[%clk
0:02:44.2]} 18... Bxf1 {[%clk 0:02:34.6]} 19. Rxf1 {[%clk 0:02:45.1]} 19... Rc7
{[%clk 0:02:26.8]} 20. a4 {[%clk 0:02:27.6]} 20... Rfc8 {[%clk 0:02:24.6]} 21.
Rc1 {[%clk 0:02:27.7]} 21... Bb4 {[%clk 0:02:12.4]} 22. Ndf3 {[%clk 0:02:12.2]}
22... Ne4 {[%clk 0:02:08.5]} 23. Rxc7 {[%clk 0:02:11.1]} 23... Rxc7 {[%clk
0:01:45.2]} 24. Nd3 {[%clk 0:02:02.4]} 24... Na6 {[%clk 0:01:43]} 25. Qe2 {[%clk
0:01:52.9]} 25... Nc3 {[%clk 0:01:31.7]} 26. Bxc3 {[%clk 0:01:50.7]} 26... Bxc3
{[%clk 0:01:32.6]} 27. f5 {[%clk 0:01:39.3]} 27... exf5 {[%clk 0:01:22.6]} 28.
Nf4 {[%clk 0:01:39]} 28... Nb4 {[%clk 0:01:20.7]} 29. Kg2 {[%clk 0:01:34.5]}
29... Bb2 {[%clk 0:01:04]} 30. Rf2 {[%clk 0:01:29.4]} 30... Bc1 {[%clk 0:00:54]}
31. Qb5 {[%clk 0:01:23.9]} 31... Bxe3 {[%clk 0:00:35.2]} 32. Re2 {[%clk
0:01:22.8]} 32... g6 {[%clk 0:00:34.2]} 33. Nxd5 {[%clk 0:01:17.4]} 33... Nxd5
{[%clk 0:00:30.6]} 34. Qxd5 {[%clk 0:01:18.3]} 34... Rc3 {[%clk 0:00:23.3]} 35.
Ne5 {[%clk 0:00:54.1]} 35... f4 {[%clk 0:00:22.4]} 36. Nc4 {[%clk 0:00:32.7]}
36... Qf6 {[%clk 0:00:13.4]} 37. h3 {[%clk 0:00:09]} 37... Kg7 {[%clk
0:00:11.4]} 38. Qf3 {[%clk 0:00:05.2]} 38... Qxd4 {[%clk 0:00:10.6]} 39. g4
{[%clk 0:00:02.9]} 39... Rd3 {[%clk 0:00:08.1]} 40. Qf1 {[%clk 0:00:01.3]} 40...
Qd5+ {[%clk 0:00:08.3]} 41. Qf3 {[%clk 0:00:01.5]} 41... Rd1 {[%clk 0:00:08.6]}
42. Qxd5 {[%clk 0:00:01.5]} 42... Rxd5 {[%clk 0:00:09.5]} 43. Nxe3 {[%clk
0:00:01.8]} 43... fxe3 {[%clk 0:00:08.6]} 44. Rxe3 {[%clk 0:00:02.7]} 44... Rc5
{[%clk 0:00:09]} 45. Kf3 {[%clk 0:00:03.2]} 45... Rc1 {[%clk 0:00:09]} 46. Ke4
{[%clk 0:00:03.4]} 46... Rb1 {[%clk 0:00:09.1]} 47. Kd5 {[%clk 0:00:03.7]} 47...
Kf6 {[%clk 0:00:09.5]} 48. Kc6 {[%clk 0:00:03.7]} 48... Rc1+ {[%clk 0:00:07.8]}
49. Kxb6 {[%clk 0:00:04]} 49... h5 {[%clk 0:00:07.5]} 50. gxh5 {[%clk
0:00:03.9]} 50... gxh5 {[%clk 0:00:08.4]} 51. Rf3+ {[%clk 0:00:04.3]} 51... Kg6
{[%clk 0:00:08.4]} 52. Kxa5 {[%clk 0:00:05.2]} 52... f5 {[%clk 0:00:09.1]} 53.
b4 {[%clk 0:00:05.8]} 53... Re1 {[%clk 0:00:08.6]} 54. b5 {[%clk 0:00:05.8]}
54... Re5 {[%clk 0:00:09.3]} 55. Ka6 {[%clk 0:00:06.1]} 55... Kg5 {[%clk
0:00:08.9]} 56. b6 {[%clk 0:00:06.6]} 56... Re6 {[%clk 0:00:09.4]} 57. Ka7
{[%clk 0:00:06.8]} 57... Re1 {[%clk 0:00:08.9]} 58. a5 {[%clk 0:00:07]} 58...
Ra1 {[%clk 0:00:08.8]} 59. a6 {[%clk 0:00:07.2]} 59... f4 {[%clk 0:00:09.7]} 60.
b7 {[%clk 0:00:07.6]} 60... Rb1 {[%clk 0:00:10.4]} 61. b8=Q {[%clk 0:00:07.7]}
61... Rxb8 {[%clk 0:00:11.3]} 62. Kxb8 {[%clk 0:00:08.6]} 62... Kf5 {[%clk
0:00:11.3]} 63. a7 {[%clk 0:00:09.1]} 63... Kg5 {[%clk 0:00:12.1]} 64. a8=Q
{[%clk 0:00:10]} 64... Kh4 {[%clk 0:00:12.8]} 65. Rxf4+ {[%clk 0:00:09.3]} 65...
Kxh3 {[%clk 0:00:13.7]} 66. Qf3+ {[%clk 0:00:09.4]} 66... Kh2 {[%clk 0:00:13.1]}
67. Rh4+ {[%clk 0:00:10.3]} 67... Kg1 {[%clk 0:00:13.4]} 68. Rh1# {[%clk
0:00:11.2]} 1-0

[Event "*** SCC Grand Prix: Titled Tuesday Blitz"]
[Site "Chess.com"]
[Date "2020.07.14"]
[Round "5"]
[White "SGchess01"]
[Black "Biranidun"]
[Result "0-1"]
[WhiteElo "2633"]
[BlackElo "2877"]
[TimeControl "180+1"]
[EndTime "10:57:22 PDT"]
[Termination "Biranidun won by resignation"]

1. e4 {[%clk 0:03:00.9]} 1... c5 {[%clk 0:02:59.6]} 2. Nf3 {[%clk 0:03:00.8]}
2... d6 {[%clk 0:03:00.1]} 3. Nc3 {[%clk 0:03:00.1]} 3... Nf6 {[%clk 0:03:00]}
4. d4 {[%clk 0:03:00.1]} 4... cxd4 {[%clk 0:03:00.3]} 5. Nxd4 {[%clk 0:03:01]}
5... a6 {[%clk 0:03:00.5]} 6. Be2 {[%clk 0:03:01.6]} 6... e5 {[%clk 0:03:00.1]}
7. Nf3 {[%clk 0:03:02]} 7... Be7 {[%clk 0:02:57]} 8. Bg5 {[%clk 0:03:02.3]} 8...
Nbd7 {[%clk 0:02:57.4]} 9. a4 {[%clk 0:03:00.5]} 9... h6 {[%clk 0:02:57.8]} 10.
Be3 {[%clk 0:02:59.4]} 10... Ng4 {[%clk 0:02:57.8]} 11. Bc1 {[%clk 0:02:59.3]}
11... Ngf6 {[%clk 0:02:56.7]} 12. O-O {[%clk 0:02:59.2]} 12... Nc5 {[%clk
0:02:54.2]} 13. Nd2 {[%clk 0:02:59.3]} 13... O-O {[%clk 0:02:53.4]} 14. a5
{[%clk 0:02:56]} 14... Be6 {[%clk 0:02:37.1]} 15. b3 {[%clk 0:02:52.6]} 15... d5
{[%clk 0:02:12.4]} 16. exd5 {[%clk 0:02:52.2]} 16... Nxd5 {[%clk 0:02:13.3]} 17.
Nxd5 {[%clk 0:02:51.5]} 17... Qxd5 {[%clk 0:02:13.2]} 18. Nc4 {[%clk 0:02:46.6]}
18... Rad8 {[%clk 0:01:49.4]} 19. Qxd5 {[%clk 0:02:41.4]} 19... Rxd5 {[%clk
0:01:50.3]} 20. Be3 {[%clk 0:02:32.6]} 20... f5 {[%clk 0:01:29.1]} 21. Rad1
{[%clk 0:02:20.7]} 21... Rfd8 {[%clk 0:01:28.4]} 22. Rxd5 {[%clk 0:02:16.8]}
22... Rxd5 {[%clk 0:01:28.3]} 23. f3 {[%clk 0:02:08.7]} 23... Nd7 {[%clk
0:01:19]} 24. g3 {[%clk 0:01:46.3]} 24... Kf7 {[%clk 0:01:16.2]} 25. Kf2 {[%clk
0:01:43.2]} 25... Kf6 {[%clk 0:01:13.3]} 26. f4 {[%clk 0:01:29.2]} 26... e4
{[%clk 0:01:10.7]} 27. Bc1 {[%clk 0:01:25.9]} 27... Bc5+ {[%clk 0:01:09.8]} 28.
Ne3 {[%clk 0:01:25.9]} 28... Bxe3+ {[%clk 0:00:57.4]} 29. Kxe3 {[%clk
0:01:22.9]} 29... Rxa5 {[%clk 0:00:58.3]} 30. Bb2+ {[%clk 0:01:22.6]} 30... Kf7
{[%clk 0:00:58.3]} 31. Ra1 {[%clk 0:01:11.4]} 31... Rxa1 {[%clk 0:00:57.9]} 32.
Bxa1 {[%clk 0:01:12.3]} 32... g6 {[%clk 0:00:50.3]} 33. h3 {[%clk 0:01:09.5]}
33... h5 {[%clk 0:00:50.1]} 34. Kd4 {[%clk 0:01:03.8]} 34... Ke7 {[%clk
0:00:50.2]} 35. Bb2 {[%clk 0:01:02.3]} 35... Kd6 {[%clk 0:00:49.5]} 36. Ba3+
{[%clk 0:00:58.1]} 36... Kc6 {[%clk 0:00:49.9]} 37. Be7 {[%clk 0:00:50.5]} 37...
b5 {[%clk 0:00:49.1]} 38. b4 {[%clk 0:00:47.4]} 38... Bf7 {[%clk 0:00:44.6]} 39.
c3 {[%clk 0:00:45.8]} 39... Nb6 {[%clk 0:00:40.1]} 40. Bc5 {[%clk 0:00:40.3]}
40... Na4 {[%clk 0:00:29.3]} 41. Be7 {[%clk 0:00:40.1]} 41... Kd7 {[%clk
0:00:28.5]} 42. Bf8 {[%clk 0:00:39.6]} 42... Nb2 {[%clk 0:00:24.9]} 43. g4
{[%clk 0:00:37.6]} 43... hxg4 {[%clk 0:00:22.6]} 44. hxg4 {[%clk 0:00:38.5]}
44... Bc4 {[%clk 0:00:22.6]} 45. gxf5 {[%clk 0:00:27.5]} 45... gxf5 {[%clk
0:00:21.6]} 46. Bh5 {[%clk 0:00:27.3]} 46... Ke6 {[%clk 0:00:20.9]} 47. Be8
{[%clk 0:00:20.9]} 47... Nd3 {[%clk 0:00:19.7]} 48. Bh6 {[%clk 0:00:19.1]} 48...
Bd5 {[%clk 0:00:18.6]} 49. Bh5 {[%clk 0:00:15.1]} 49... Bc6 {[%clk 0:00:14.8]}
50. Be2 {[%clk 0:00:15.1]} 50... Nc1 {[%clk 0:00:14.3]} 51. Bd1 {[%clk
0:00:11.7]} 51... Nd3 {[%clk 0:00:14.6]} 52. Be2 {[%clk 0:00:12]} 52... Nf2
{[%clk 0:00:14.9]} 53. Kc5 {[%clk 0:00:11.3]} 53... Kd7 {[%clk 0:00:13.4]} 54.
Bg7 {[%clk 0:00:09.7]} 54... Nd3+ {[%clk 0:00:10.5]} 55. Kb6 {[%clk 0:00:09.3]}
55... Nxf4 {[%clk 0:00:10.8]} 56. Bf1 {[%clk 0:00:08.6]} 56... e3 {[%clk
0:00:11.2]} 57. Bh6 {[%clk 0:00:07.8]} 57... e2 {[%clk 0:00:10.8]} 58. Bxe2
{[%clk 0:00:08.2]} 58... Nxe2 {[%clk 0:00:11.7]} 59. Kxa6 {[%clk 0:00:08.5]}
59... Nxc3 {[%clk 0:00:12.1]} 60. Kb6 {[%clk 0:00:08.5]} 60... Kd6 {[%clk
0:00:11.2]} 61. Bf8+ {[%clk 0:00:08.2]} 61... Kd5 {[%clk 0:00:11.6]} 62. Bg7
{[%clk 0:00:08.9]} 62... Na2 {[%clk 0:00:10.2]} 63. Bh6 {[%clk 0:00:09.8]} 63...
Nxb4 {[%clk 0:00:10.3]} 0-1

[Event "*** SCC Grand Prix: Titled Tuesday Blitz"]
[Site "Chess.com"]
[Date "2020.07.14"]
[Round "5"]
[White "WelshTiger"]
[Black "vesalhamedinia"]
[Result "1-0"]
[WhiteElo "2378"]
[BlackElo "2216"]
[TimeControl "180+1"]
[EndTime "10:57:27 PDT"]
[Termination "WelshTiger won by checkmate"]

1. e4 {[%clk 0:03:00.9]} 1... c5 {[%clk 0:02:56.7]} 2. Nf3 {[%clk 0:03:00.8]}
2... Nc6 {[%clk 0:02:56.1]} 3. Bb5 {[%clk 0:02:58.2]} 3... g6 {[%clk 0:02:54.6]}
4. Bxc6 {[%clk 0:02:57.7]} 4... dxc6 {[%clk 0:02:55.5]} 5. h3 {[%clk 0:02:57.2]}
5... Bg7 {[%clk 0:02:55.8]} 6. d3 {[%clk 0:02:56.1]} 6... Nf6 {[%clk 0:02:55.5]}
7. Be3 {[%clk 0:02:46.7]} 7... Nd7 {[%clk 0:02:54.8]} 8. Nc3 {[%clk 0:02:46.5]}
8... e5 {[%clk 0:02:49.5]} 9. Qd2 {[%clk 0:02:46.6]} 9... h6 {[%clk 0:02:49.1]}
10. Nh2 {[%clk 0:02:46.7]} 10... b6 {[%clk 0:02:47]} 11. f4 {[%clk 0:02:43.4]}
11... exf4 {[%clk 0:02:46.1]} 12. Bxf4 {[%clk 0:02:44]} 12... Nf8 {[%clk
0:02:45.1]} 13. Nf3 {[%clk 0:02:41.1]} 13... Ne6 {[%clk 0:02:44.6]} 14. Bh2
{[%clk 0:02:41.2]} 14... Nd4 {[%clk 0:02:43.2]} 15. O-O {[%clk 0:02:37]} 15...
Be6 {[%clk 0:02:40]} 16. e5 {[%clk 0:02:02.9]} 16... O-O {[%clk 0:02:31.8]} 17.
Rae1 {[%clk 0:02:00.8]} 17... Re8 {[%clk 0:02:08]} 18. b3 {[%clk 0:01:57.3]}
18... Kh7 {[%clk 0:01:45.2]} 19. Ne4 {[%clk 0:01:56.9]} 19... Bd5 {[%clk
0:01:08.1]} 20. Nxd4 {[%clk 0:01:53.3]} 20... cxd4 {[%clk 0:01:01.9]} 21. Nf6+
{[%clk 0:01:42.2]} 21... Bxf6 {[%clk 0:00:54.9]} 22. Rxf6 {[%clk 0:01:43.1]}
22... a5 {[%clk 0:00:40.9]} 23. h4 {[%clk 0:01:39.5]} 23... h5 {[%clk 0:00:33]}
24. Qg5 {[%clk 0:01:39]} 24... Ra7 {[%clk 0:00:29.4]} 25. Bf4 {[%clk 0:01:36.8]}
25... Qe7 {[%clk 0:00:20.2]} 26. Qh6+ {[%clk 0:01:24]} 26... Kg8 {[%clk
0:00:19.9]} 27. Rf1 {[%clk 0:01:16.8]} 27... Qf8 {[%clk 0:00:18.9]} 28. Qg5
{[%clk 0:01:16.7]} 28... Qg7 {[%clk 0:00:18.3]} 29. Qg3 {[%clk 0:01:06]} 29...
a4 {[%clk 0:00:15.1]} 30. Bg5 {[%clk 0:01:01.7]} 30... c5 {[%clk 0:00:15.1]} 31.
Rd6 {[%clk 0:00:33.6]} 31... Be6 {[%clk 0:00:12.8]} 32. Bf6 {[%clk 0:00:33.2]}
32... Qh6 {[%clk 0:00:13]} 33. Bg5 {[%clk 0:00:29.8]} 33... Qg7 {[%clk 0:00:13]}
34. Rf6 {[%clk 0:00:29.6]} 34... axb3 {[%clk 0:00:12.1]} 35. axb3 {[%clk
0:00:27.2]} 35... Ra1+ {[%clk 0:00:12.3]} 36. Kh2 {[%clk 0:00:26]} 36... Bg4
{[%clk 0:00:11.5]} 37. Rxb6 {[%clk 0:00:20.2]} 37... Be6 {[%clk 0:00:09]} 38.
Rc6 {[%clk 0:00:19.2]} 38... Re1 {[%clk 0:00:08.7]} 39. Rxc5 {[%clk 0:00:18.5]}
39... Bg4 {[%clk 0:00:08.9]} 40. Qxe1 {[%clk 0:00:15]} 40... Qf8 {[%clk
0:00:08.3]} 41. Rc7 {[%clk 0:00:13.6]} 41... Be6 {[%clk 0:00:06.2]} 42. Bf4
{[%clk 0:00:10]} 42... Qa3 {[%clk 0:00:05.6]} 43. Qg3 {[%clk 0:00:09.4]} 43...
Qf8 {[%clk 0:00:03.4]} 44. Rxg6+ {[%clk 0:00:06.2]} 44... fxg6 {[%clk
0:00:02.7]} 45. Qxg6+ {[%clk 0:00:06.4]} 45... Kh8 {[%clk 0:00:03.6]} 46. Bh6
{[%clk 0:00:06.5]} 46... Qf4+ {[%clk 0:00:03]} 47. Bxf4 {[%clk 0:00:05.8]} 47...
Bf5 {[%clk 0:00:02.9]} 48. Qg7# {[%clk 0:00:05.8]} 1-0